fUST/lending_fUST_20251112
["ID","MTS","AMOUNT","RATE_DAILY","PERIOD"]
[393647722,1762876903582,165.571,0.00014395,2]
[393647723,1762876924263,300.0,0.00014688,2]
[393647724,1762876976950,-343.84510446,0.00014689,2]
[393647725,1762876980269,-210.3783413,0.00014689,2]
[393647726,1762876984036,-320.80377826,0.00014689,2]
[393647727,1762876985629,-412.5963803,0.00014689,2]
[393647728,1762876988004,-326.56991812,0.00014689,2]
[393647729,1762876992057,-291.58822326,0.00014689,2]
[393647731,1762877204340,2109.20314711,0.00014636,2]
[393647732,1762877220923,369.4964703,0.00014589,2]
[393647733,1762877223190,300.0,0.00014688,2]
[393647734,1762877234407,404.96765326,0.00014688,2]
[393647735,1762877244555,500.0,0.00014688,2]
[393647736,1762877255245,500.0,0.00014688,2]
[393647737,1762877264834,1200.0,0.00014688,2]
[393647738,1762877265537,-209.14531167,0.00014689,2]
[393647739,1762877265705,500.0,0.00014688,2]
[393647740,1762877267338,-158.86447604,0.00014689,2]
[393647741,1762877269745,-239.43943911,0.00014689,2]
[393647742,1762877272061,-223.08686175,0.00014689,2]
[393647743,1762877273785,-174.5403129,0.00014689,2]
[393647744,1762877275616,-181.9297246,0.00014689,2]
[393647745,1762877275917,500.0,0.00014688,2]
[393647746,1762877276288,500.0,0.00014688,2]
[393647747,1762877276366,500.0,0.00014688,2]
[393647748,1762877277629,-289.17869704,0.00014689,2]
[393647749,1762877282619,300.0,0.00014688,2]
[393647750,1762877283526,-169.01444412,0.00014689,2]
[393647751,1762877286531,500.0,0.00014688,2]
[393647752,1762877293832,500.0,0.00014688,2]
[393647753,1762877294075,500.0,0.00014688,2]
[393647754,1762877294235,159.33118672,0.00014688,2]
[393647755,1762877294261,8.97881328,0.00014688,2]
[393647756,1762877304292,500.0,0.00014688,2]
[393647757,1762877304345,300.0,0.00014688,2]
[393647758,1762877311616,425.15855154,0.00014688,2]
[393647759,1762877321973,-266.72851045,0.00014689,2]
[393647760,1762877324533,-197.99063882,0.00014689,2]
[393647761,1762877336892,-352.30095932,0.00014689,2]
[393647762,1762877338415,-182.1084991,0.00014689,2]
[393647763,1762877340495,-186.68139984,0.00014689,2]
[393647764,1762877343228,-376.5703439,0.00014689,2]
[393647765,1762877345214,-300.0,0.00014689,2]
[393647766,1762877413112,-399.71080467,0.00014689,2]
[393647982,1762877438850,-541.21466272,0.00014689,2]
[393648163,1762877440650,-426.19784745,0.00014689,2]
[393648165,1762877440661,-481.09620677,0.00014689,2]
[393648187,1762877440867,-3e-08,0.00014689,2]
[393648596,1762877447180,-518.58552665,0.00014689,2]
[393648597,1762877447204,-62.06569347,0.00014689,2]
[393648616,1762877448018,-316219.7149895,0.00014689,2]
[393648617,1762877448030,-452938.05290438,0.00014689,2]
[393648618,1762877448040,-150.0,0.00014712,2]
[393648619,1762877448049,-214.7903291,0.00014882,2]
[393648620,1762877448058,-600.0,0.00014982,2]
[393648621,1762877448067,-720.0,0.0001648,2]
[393648622,1762877448077,-177.0,0.00016712,2]
[393648623,1762877448087,-864.0,0.00018128,2]
[393648624,1762877448097,-204.0,0.00018712,2]
[393648625,1762877448106,-877.01531127,0.00018904,2]
[393648626,1762877448116,-187.6854627,0.00019468,2]
[393648627,1762877448125,-400.09383847,0.0001949,2]
[393648628,1762877448134,-877.01531127,0.00019581,2]
[393648629,1762877448144,-1000.0,0.00019941,2]
[393648630,1762877448153,-877.01531127,0.00020258,2]
[393648631,1762877448163,-231.0,0.00020712,2]
[393648632,1762877448172,-877.01531127,0.00020935,2]
[393648633,1762877448181,-621.256316,0.00020995,2]
[393648634,1762877448191,-877.89232658,0.00021612,2]
[393648635,1762877448201,-646.1101519,0.00021766,2]
[393648636,1762877448211,-1000.0,0.00021935,20]
[393648637,1762877448221,-244.0,0.00021935,20]
[393648638,1762877448231,-2181.32153737,0.00022274,2]
[393648639,1762877448240,-2181.32153737,0.00022488,2]
[393648640,1762877448249,-10584.95,0.000225,7]
[393648641,1762877448259,-521.25,0.000225,7]
[393648642,1762877448268,-155.0,0.000225,14]
[393648643,1762877448277,-258.0,0.00022712,2]
[393648644,1762877448287,-2181.32153737,0.00022793,2]
[393648645,1762877448297,-2181.32153737,0.0002314,2]
[393648646,1762877448306,-2181.32153737,0.00023414,2]
[393648647,1762877448316,-501.26,0.00023668,2]
[393648648,1762877448326,-2181.32153737,0.00023702,2]
[393648649,1762877448336,-2181.32153737,0.00023858,2]
[393648650,1762877448345,-1000.0,0.00024128,20]
[393648651,1762877448356,-492.0,0.00024128,20]
[393648652,1762877448366,-2181.32153737,0.00024374,2]
[393648653,1762877448375,-2181.32153737,0.00024593,2]
[393648654,1762877448384,-19566.83899579,0.00024606,2]
[393648655,1762877485935,500.0,0.00014688,2]
[393648656,1762877485969,630.18575595,0.00014688,2]
[393648657,1762877486000,500.0,0.00014688,2]
[393648658,1762877486033,500.0,0.00014688,2]
[393648659,1762877486065,500.0,0.00014688,2]
[393648660,1762877486097,500.0,0.00014688,2]
[393648661,1762877486132,500.0,0.00014688,2]
[393648662,1762877486165,500.0,0.00014688,2]
[393648663,1762877486197,500.0,0.00014688,2]
[393648664,1762877486228,493.50489685,0.00014688,2]
[393648665,1762877486261,500.0,0.00014688,2]
[393648666,1762877486464,599.71080467,0.00014688,2]
[393648667,1762877502037,500.0,0.00014688,2]
[393648668,1762877502069,500.0,0.00014688,2]
[393648669,1762877502101,500.0,0.00014688,2]
[393648670,1762877502133,500.0,0.00014688,2]
[393648671,1762877502170,500.0,0.00014688,2]
[393648672,1762877502203,42.47117771,0.00014688,2]
[393648673,1762877502231,457.52882229,0.00014688,2]
[393648674,1762877502265,500.0,0.00014688,2]
[393648675,1762877502296,500.0,0.00014688,2]
[393648676,1762877502328,500.0,0.00014688,2]
[393648677,1762877502364,368.0,0.00014688,2]
[393648678,1762877502400,500.0,0.00014688,2]
[393648679,1762877502433,500.0,0.00014688,2]
[393648680,1762877502468,329.9166476,0.00014688,2]
[393648681,1762877502500,500.0,0.00014688,2]
[393648682,1762877502532,500.0,0.00014688,2]
[393648683,1762877502563,500.0,0.00014688,2]
[393648684,1762877502595,500.0,0.00014688,2]
[393648685,1762877502626,500.0,0.00014688,2]
[393648686,1762877502657,500.0,0.00014688,2]
[393648687,1762877502690,500.0,0.00014688,2]
[393648688,1762877502720,619.97712136,0.00014688,2]
[393648689,1762877502752,500.0,0.00014688,2]
[393648690,1762877502784,500.0,0.00014688,2]
[393648691,1762877502815,500.0,0.00014688,2]
[393648692,1762877502852,500.0,0.00014688,2]
[393648693,1762877502889,224.58740875,0.00014688,2]
[393648694,1762877502915,275.41259125,0.00014688,2]
[393648695,1762877502946,315.16567978,0.00014688,2]
[393648696,1762877502980,500.0,0.00014688,2]
[393648697,1762877560910,8909.43172897,0.00014589,2]
[393648698,1762877560938,10000.01,0.00014589,2]
[393648699,1762877560969,10000.01,0.00014589,2]
[393648700,1762877560997,10000.01,0.00014589,2]
[393648701,1762877561023,10000.01,0.00014589,2]
[393648702,1762877561050,10000.01,0.00014589,2]
[393648703,1762877561076,10000.01,0.00014589,2]
[393648704,1762877561103,10000.01,0.00014589,2]
[393648705,1762877561130,10000.01,0.00014589,2]
[393648706,1762877561157,10000.01,0.00014589,2]
[393648707,1762877575743,-1200.0,0.00014588,2]
[393648708,1762877579271,-7600.01,0.00014589,2]
[393648709,1762877579341,-10000.01,0.00014589,2]
[393648710,1762877579463,-10000.01,0.00014589,2]
[393648711,1762877579580,-10000.01,0.00014589,2]
[393648712,1762877579703,-10000.01,0.00014589,2]
[393648713,1762877579855,-10000.01,0.00014589,2]
[393648714,1762877581920,-10000.01,0.00014589,2]
[393648715,1762877582042,-10000.01,0.00014589,2]
[393648716,1762877582176,-10000.01,0.00014589,2]
[393648717,1762877582324,-10000.01,0.00014589,2]
[393648718,1762877588128,-300.0,0.00014588,2]
[393648719,1762877588177,-9400.01,0.00014589,2]
[393648720,1762877588266,-10000.01,0.00014589,2]
[393648721,1762877588423,-10000.01,0.00014589,2]
[393648722,1762877588572,-10000.01,0.00014589,2]
[393648723,1762877588726,-10000.01,0.00014589,2]
[393648724,1762877588858,-10000.01,0.00014589,2]
[393648725,1762877591473,-10000.01,0.00014589,2]
[393648726,1762877591739,-10000.01,0.00014589,2]
[393648727,1762877591882,-10000.01,0.00014589,2]
[393648728,1762877594329,-10000.01,0.00014589,2]
[393648729,1762877594459,-10000.01,0.00014589,2]
[393648730,1762877594612,-10000.01,0.00014589,2]
[393648731,1762877594758,-10000.01,0.00014589,2]
[393648732,1762877594883,-10000.01,0.00014589,2]
[393648733,1762877595014,-10000.01,0.00014589,2]
[393648734,1762877595391,-10000.01,0.00014589,2]
[393648735,1762877598049,-10000.01,0.00014589,2]
[393648736,1762877598755,-10000.01,0.00014589,2]
[393648737,1762877603438,-10000.01,0.00014589,2]
[393648738,1762877603588,-10000.01,0.00014589,2]
[393648739,1762877603719,-10000.01,0.00014589,2]
[393648740,1762877603857,-10000.01,0.00014589,2]
[393648741,1762877603992,-10000.01,0.00014589,2]
[393648742,1762877604138,-10000.01,0.00014589,2]
[393648743,1762877604279,-10000.01,0.00014589,2]
[393648744,1762877604404,-10000.01,0.00014589,2]
[393648745,1762877609871,-10000.01,0.00014589,2]
[393648746,1762877610097,-10000.01,0.00014589,2]
[393648747,1762877613046,-10000.01,0.00014589,2]
[393648748,1762877613162,-10000.01,0.00014589,2]
[393648749,1762877755896,3727.31452346,0.00014489,2]
[393648750,1762877891932,-202.11055228,0.00014586,2]
[393648751,1762877895503,-714.60843956,0.00014586,2]
[393648752,1762877899723,-32.28100816,0.00014586,2]
[393648753,1762877899747,-119.01281893,0.00014586,2]
[393648754,1762877902325,-180.98718107,0.00014586,2]
[393648755,1762877902348,-126.22554824,0.00014587,2]
[393648756,1762878041168,3261.40020801,0.00014489,2]
[393648757,1762878073043,-300.0,0.00014584,2]
[393648758,1762878074686,-174.0,0.00014585,2]
[393648759,1762878074711,-90.63003866,0.00014585,2]
[393648760,1762878077163,-182.1712625,0.00014585,2]
[393648761,1762878079812,-185.3578973,0.00014585,2]
[393648762,1762878082035,-167.88727478,0.00014585,2]
[393648763,1762878084828,-300.0,0.00014585,2]
[393648764,1762878089649,-273.95352676,0.00014585,2]
[393648765,1762878089674,-93.07105522,0.00014585,2]
[393648766,1762878092891,-380.21079937,0.00014585,2]
[393648767,1762878096545,-26.71814541,0.00014585,2]
[393648768,1762878096576,-170.21481117,0.00014585,2]
[393648769,1762878099912,-249.67374967,0.00014585,2]
[393648770,1762878105101,-80.11143916,0.00014585,2]
[393648771,1762878105128,-388.50951451,0.00014585,2]
[393648772,1762878108494,-80.95609458,0.00014585,2]
[393648773,1762878108519,-196.02264567,0.00014585,2]
[393648774,1762878109997,-230.89578092,0.00014585,2]
[393648775,1762878113060,-73.08157341,0.00014585,2]
[393648776,1762878113087,-128.67229242,0.00014585,2]
[393648777,1762878115139,-299.30753702,0.00014585,2]
[393648778,1762878116592,-72.02017056,0.00014585,2]
[393648779,1762878116618,-126.04529776,0.00014585,2]
[393648780,1762878119667,-160.81857196,0.00014585,2]
[393648781,1762878121657,-213.13613028,0.00014585,2]
[393648782,1762878121683,-99.63738525,0.00014585,2]
[393648783,1762878125159,-300.0,0.00014584,2]
[393648784,1762878125184,-161.13114303,0.00014585,2]
[393648785,1762878127012,-208.61782145,0.00014585,2]
[393648786,1762878130324,-30.61365027,0.00014585,2]
[393648787,1762878130350,-155.96595072,0.00014585,2]
[393648788,1762878134016,-344.03404928,0.00014585,2]
[393648789,1762878134043,-328.61700404,0.00014585,2]
[393648790,1762878136696,-102.89956394,0.00014585,2]
[393648791,1762878136723,-100.11931613,0.00014585,2]
[393648792,1762878138709,-360.61263623,0.00014585,2]
[393648793,1762878144997,-39.26804764,0.00014585,2]
[393648794,1762878145022,-214.9133804,0.00014585,2]
[393648795,1762878147025,-288.01863307,0.00014585,2]
[393648796,1762878147051,-11.98136693,0.00014585,2]
[393648797,1762878151186,-338.31513513,0.00014585,2]
[393648798,1762878155027,-332.29085388,0.00014586,2]
[393648799,1762878157372,-167.70914612,0.00014586,2]
[393648800,1762878157397,-70.08226047,0.00014587,2]
[393648801,1762878159944,-183.11643837,0.00014587,2]
[393648802,1762878192009,-426.54357429,0.00014586,2]
[393648803,1762878195068,-282.72938194,0.00014586,2]
[393648805,1762878206190,567.080397,0.00013699,2]
[393648806,1762878251908,-180.67578395,0.00014586,2]
[393648807,1762878254936,-208.28717155,0.00014586,2]
[393648808,1762878257673,-101.76408827,0.00014586,2]
[393648809,1762878257701,-154.10543127,0.00014586,2]
[393648810,1762878261250,-145.89456873,0.00014586,2]
[393648811,1762878261273,-93.25430613,0.00014587,2]
[393648812,1762878262714,-56.74569387,0.00014587,2]
[393648813,1762878262738,-161.7478832,0.00014587,2]
[393648814,1762878265681,-85.05341796,0.00014587,2]
[393648815,1762878265705,-72.61812475,0.00014587,2]
[393648816,1762878270053,-427.38187525,0.00014587,2]
[393648817,1762878270076,-10.33226198,0.00014587,2]
[393648818,1762878273962,-266.41039183,0.00014587,2]
[393648819,1762878276647,-181.15232409,0.00014587,2]
[393648820,1762878278270,-42.1050221,0.00014587,2]
[393648821,1762878278298,-136.18592144,0.00014587,2]
[393648822,1762878281482,-300.04711574,0.00014587,2]
[393648823,1762878284115,-63.76696282,0.00014587,2]
[393648824,1762878284137,-120.92421599,0.00014587,2]
[393648825,1762878287188,-231.2677652,0.00014587,2]
[393648826,1762878288862,-147.80801881,0.00014587,2]
[393648827,1762878288885,-23.45937001,0.00014587,2]
[393648828,1762878290870,-249.81812272,0.00014587,2]
[393648829,1762878293872,-226.72250727,0.00014587,2]
[393648830,1762878293897,-21.0105303,0.00014587,2]
[393648831,1762878296241,-275.21121986,0.00014587,2]
[393648832,1762878299190,-203.77824984,0.00014587,2]
[393648833,1762878299213,-71.31993759,0.00014587,2]
[393648834,1762878301502,-189.46993498,0.00014587,2]
[393648836,1762878303534,-300.0,0.00014586,2]
[393648837,1762878303558,-32.89984617,0.00014586,2]
[393648838,1762878305111,-219.12248116,0.00014586,2]
[393648840,1762878306904,-47.97767267,0.00014586,2]
[393648841,1762878306928,-263.0581321,0.00014586,2]
[393648845,1762878310044,-36.9418679,0.00014586,2]
[393648846,1762878310079,-139.77330911,0.00014586,2]
[393648847,1762878312812,-161.20593704,0.00014586,2]
[393648848,1762878314636,-189.97973087,0.00014586,2]
[393648849,1762878318031,-432.89984617,0.00014586,2]
[393648850,1762878319756,-151.0,0.00014586,2]
[393648851,1762878321528,2853.725182,0.00014488,2]
[393648852,1762878321752,-125.14117681,0.00014586,2]
[393648853,1762878321780,-173.85882319,0.00014587,2]
[393648854,1762878327125,-65.35130424,0.00014587,2]
[393648855,1762878327156,-211.76911872,0.00014587,2]
[393648856,1762878328899,-182.02953143,0.00014587,2]
[393648857,1762878331046,-106.20134985,0.00014587,2]
[393648858,1762878331075,-247.68038823,0.00014587,2]
[393648861,1762878334055,-238.33260601,0.00014587,2]
[393648862,1762878356927,-459.88768753,0.00014586,2]
[393648863,1762878360017,-254.60136818,0.00014586,2]
[393648864,1762878361463,-300.0,0.00014586,2]
[393648865,1762878363793,-319.04161243,0.00014586,2]
[393648866,1762878365642,-244.05459319,0.00014586,2]
[393648867,1762878367549,-211.16574621,0.00014586,2]
[393648868,1762878371016,-163.97415548,0.00014586,2]
[393648869,1762878375047,-311.55079835,0.00014586,2]
[393648870,1762878378889,-185.76817319,0.00014586,2]
[393648871,1762878380432,-297.6673489,0.00014586,2]
[393648872,1762878382933,-237.69140126,0.00014586,2]
[393648873,1762878388240,-151.0,0.00014586,2]
[393648874,1762878390314,-161.46097644,0.00014586,2]
[393648875,1762878395907,-185.69133198,0.00014586,2]
[393648876,1762878397982,-166.77323784,0.00014586,2]
[393648877,1762878403440,-248.04751013,0.00014586,2]
[393648878,1762878405301,-196.88650681,0.00014586,2]
[393648879,1762878407072,-265.16830607,0.00014586,2]
[393648881,1762878410045,-182.33924157,0.00014586,2]
[393648889,1762878412257,-243.31478545,0.00014586,2]
[393648893,1762878415058,-230.96737933,0.00014586,2]
[393648895,1762878418812,-240.4937328,0.00014586,2]
[393648896,1762878421365,-218.14480684,0.00014586,2]
[393648897,1762878425639,-239.14571775,0.00014586,2]
[393648900,1762878430180,-190.67417483,0.00014586,2]
[393648901,1762878432721,-410.64797549,0.00014586,2]
[393648902,1762878434817,-18.00143195,0.00014586,2]
[393648903,1762878434844,-179.43087481,0.00014586,2]
[393648904,1762878437405,-219.4387685,0.00014586,2]
[393648905,1762878441590,-101.13035669,0.00014586,2]
[393648906,1762878441614,-212.89510975,0.00014586,2]
[393648907,1762878443535,-87.10489025,0.00014586,2]
[393648908,1762878443563,-13.98700576,0.00014587,2]
[393648909,1762878443591,-462.26845027,0.00014587,2]
[393648910,1762878445758,-37.73154973,0.00014587,2]
[393648911,1762878445788,-157.91785612,0.00014587,2]
[393648912,1762878450633,-314.46694201,0.00014587,2]
[393648913,1762878452194,-27.61520187,0.00014587,2]
[393648914,1762878452222,-127.3430794,0.00014587,2]
[393648915,1762878454186,-265.08539784,0.00014587,2]
[393648916,1762878456558,-107.57152276,0.00014587,2]
[393648917,1762878456584,-47.30199767,0.00014587,2]
[393648918,1762878458285,-300.0,0.00014587,2]
[393648919,1762878460036,-500.0,0.00014586,2]
[393648920,1762878460096,-152.69800233,0.00014587,2]
[393648921,1762878460251,-43.58789023,0.00014587,2]
[393648922,1762878462559,-226.5880084,0.00014587,2]
[393648923,1762878466759,-229.82410137,0.00014587,2]
[393648924,1762878466784,-252.38421064,0.00014587,2]
[393648926,1762878484827,300.0,0.00014586,2]
[393648928,1762878507982,157.21272931,0.00014487,2]
[393648929,1762878514355,206.28193926,0.00014487,2]
[393648931,1762878543956,300.0,0.00014586,2]
[393649941,1762878602422,2812.68793522,0.00014487,2]
[393649942,1762878604214,1200.0,0.00014586,2]
[393650053,1762878640726,-6070.24,0.00014587,2]
[393650055,1762878640736,-6070.24,0.00014587,2]
[393650057,1762878640748,-2565.21722936,0.00014587,2]
[393650174,1762878642123,-3e-08,0.00014587,2]
[393650220,1762878645527,500.0,0.00014586,2]
[393650257,1762878646929,-500.0,0.00014586,2]
[393650258,1762878646938,-500.0,0.00014586,2]
[393650259,1762878646949,-500.0,0.00014586,2]
[393650260,1762878646958,-500.0,0.00014586,2]
[393650261,1762878646968,-500.0,0.00014586,2]
[393650262,1762878646978,-500.0,0.00014586,2]
[393650263,1762878646988,-247.61578936,0.00014586,2]
[393650264,1762878646999,-325.72406311,0.00014586,2]
[393650265,1762878647009,-500.0,0.00014586,2]
[393650266,1762878647019,-275.8844646,0.00014586,2]
[393650267,1762878647029,-500.0,0.00014586,2]
[393650268,1762878647039,-500.0,0.00014586,2]
[393650269,1762878647049,-500.0,0.00014586,2]
[393650270,1762878647059,-500.0,0.00014586,2]
[393650271,1762878647069,-3505.02277061,0.00014587,2]
[393650272,1762878647079,-6070.24,0.00014587,2]
[393650273,1762878647088,-6070.24,0.00014587,2]
[393650274,1762878647098,-500.0,0.00014587,2]
[393650275,1762878647107,-500.0,0.00014587,2]
[393650276,1762878647118,-500.0,0.00014587,2]
[393650277,1762878647128,-500.0,0.00014587,2]
[393650278,1762878647138,-536.13127727,0.00014587,2]
[393650279,1762878647148,-150.0,0.00014588,2]
[393650280,1762878647158,-500.0,0.00014588,2]
[393650281,1762878647168,-500.0,0.00014588,2]
[393650282,1762878647177,-384.42707083,0.00014588,2]
[393650283,1762878647186,-500.0,0.00014588,2]
[393650284,1762878647196,-500.0,0.00014588,2]
[393650285,1762878647287,-318.44957064,0.00014588,2]
[393650286,1762878647322,-6070.24,0.00014588,2]
[393650287,1762878647332,-6070.24,0.00014588,2]
[393650288,1762878647342,-6070.24,0.00014588,2]
[393650289,1762878647354,-6070.24,0.00014588,2]
[393650290,1762878647364,-6070.24,0.00014588,2]
[393650291,1762878647373,-6070.24,0.00014588,2]
[393650292,1762878647383,-6070.24,0.00014588,2]
[393650293,1762878647393,-6070.24,0.00014588,2]
[393650294,1762878647403,-6070.24,0.00014588,2]
[393650295,1762878647413,-6070.24,0.00014588,2]
[393650296,1762878647423,-6070.24,0.00014588,2]
[393650297,1762878647434,-196.47504435,0.00014588,2]
[393650298,1762878647447,-1360.65552133,0.00014588,2]
[393650299,1762878647459,-893.20068695,0.00014588,2]
[393650300,1762878647471,-3619.90874737,0.00014588,2]
[393650301,1762878647481,-6070.24,0.00014588,2]
[393650302,1762878647492,-2869.49884228,0.00014588,2]
[393650303,1762878647503,-657.76835311,0.00014588,2]
[393650304,1762878647515,-2542.97280461,0.00014588,2]
[393650305,1762878647526,-9876.97959179,0.00014589,2]
[393650306,1762878647538,-1086.85845962,0.00014589,2]
[393651407,1762878833484,152.46737503,0.00015578,7]
[393651408,1762878842728,2461.1019433,0.00014489,2]
[393651409,1762878842846,300.0,0.00014586,2]
[393651410,1762878885632,15762.71545291,0.00014489,2]
[393651411,1762878885667,90917.05051977,0.00014489,2]
[393651420,1762879024906,212.09,0.00019464,30]
[393651422,1762879105623,210.94,0.00019423,30]
[393651423,1762879184864,209.79,0.00019309,30]
[393651425,1762879264385,208.64,0.00018677,30]
[393651434,1762879438538,1730.4250877,0.00013474,2]
[393651435,1762879493432,903.8147719,0.00013699,2]
[393651436,1762879495668,806.5668129,0.00013457,2]
[393651437,1762879589986,229.407524,0.00013699,2]
[393651523,1762879619678,2474.9922296,0.00013588,2]
[393651583,1762879790363,-436.27130892,0.00014267,2]
[393651584,1762879812390,9242.1125551,0.00013475,2]
[393651845,1762879837634,-212.47223173,0.00014267,2]
[393651847,1762879837645,-150.0,0.00014272,2]
[393651849,1762879837654,-1054.77776827,0.00014388,2]
[393651850,1762879837666,-1098.68643217,0.00014388,2]
[393651851,1762879837675,-93.69971626,0.00014455,2]
[393651852,1762879837686,-1501.08898084,0.00014455,2]
[393651853,1762879837697,-541.09,0.00014455,2]
[393651854,1762879837709,-112.48326497,0.00014455,2]
[393651855,1762879837719,-150.35031034,0.00014473,2]
[393651856,1762879837728,-500.0,0.00014473,2]
[393651857,1762879837737,-500.0,0.00014473,2]
[393651858,1762879837747,-500.0,0.00014473,2]
[393651859,1762879837756,-500.0,0.00014473,2]
[393651860,1762879837766,-329.43474587,0.00014473,2]
[393651861,1762879837775,-500.0,0.00014473,2]
[393651862,1762879837785,-507.10546114,0.00014481,2]
[393651863,1762879837794,-500.0,0.00014481,2]
[393651864,1762879837803,-500.0,0.00014481,2]
[393651865,1762879837813,-500.0,0.00014481,2]
[393651866,1762879837822,-500.0,0.00014481,2]
[393651867,1762879837832,-500.0,0.00014481,2]
[393651868,1762879837844,-500.0,0.00014481,2]
[393651869,1762879837854,-500.0,0.00014481,2]
[393651870,1762879837864,-500.0,0.00014481,2]
[393651871,1762879837873,-500.0,0.00014481,2]
[393651872,1762879837882,-594.76615489,0.00014481,2]
[393651873,1762879837892,-500.0,0.00014481,2]
[393651874,1762879837903,-593.82496108,0.00014481,2]
[393651875,1762879837913,-384.27959016,0.00014481,2]
[393651876,1762879837923,-500.0,0.00014481,2]
[393651877,1762879837933,-500.0,0.00014481,2]
[393651878,1762879837943,-500.0,0.00014481,2]
[393651879,1762879837953,-500.0,0.00014481,2]
[393651880,1762879837963,-500.0,0.00014481,2]
[393651881,1762879837972,-500.0,0.00014481,2]
[393651882,1762879837982,-500.0,0.00014481,2]
[393651883,1762879837992,-193.9071528,0.00014481,2]
[393651884,1762879838002,-500.0,0.00014481,2]
[393651885,1762879838012,-500.0,0.00014481,2]
[393651886,1762879838023,-500.0,0.00014481,2]
[393651887,1762879838034,-500.0,0.00014481,2]
[393651888,1762879838044,-500.0,0.00014481,2]
[393651889,1762879838055,-500.0,0.00014481,2]
[393651890,1762879838066,-500.0,0.00014481,2]
[393651891,1762879838076,-500.0,0.00014481,2]
[393651892,1762879838086,-500.0,0.00014481,2]
[393651893,1762879838103,-500.0,0.00014481,2]
[393651894,1762879838113,-469.52437903,0.00014481,2]
[393651895,1762879838124,-500.0,0.00014481,2]
[393651896,1762879838133,-500.0,0.00014481,2]
[393651897,1762879838146,-500.0,0.00014481,2]
[393651898,1762879838156,-500.0,0.00014481,2]
[393651899,1762879838166,-500.0,0.00014481,2]
[393651900,1762879838175,-500.0,0.00014481,2]
[393651901,1762879838186,-300.0,0.00014481,2]
[393651902,1762879838196,-1200.0,0.00014481,2]
[393651903,1762879838205,-14399.42211327,0.00014483,2]
[393651904,1762879838216,-1264.63,0.00014485,2]
[393651905,1762879838225,-500.0,0.00014487,2]
[393651906,1762879838235,-151.48695744,0.00014487,2]
[393651907,1762879838245,-500.0,0.00014487,2]
[393651908,1762879838255,-151.0,0.00014487,2]
[393651909,1762879838265,-151.0,0.00014487,2]
[393651910,1762879838275,-500.0,0.00014487,2]
[393651911,1762879838285,-151.0,0.00014487,2]
[393651912,1762879838295,-151.0,0.00014487,2]
[393651913,1762879838304,-151.0,0.00014487,2]
[393651914,1762879838315,-500.0,0.00014487,2]
[393651915,1762879838324,-151.0,0.00014487,2]
[393651916,1762879838333,-151.0,0.00014487,2]
[393651917,1762879838345,-153.24300351,0.00014487,2]
[393651918,1762879838355,-151.0,0.00014487,2]
[393651919,1762879838365,-209.97796445,0.00014487,2]
[393651920,1762879838376,-279.14379726,0.00014487,2]
[393651921,1762879838385,-342.47210231,0.00014487,2]
[393651922,1762879838395,-150.0,0.00014487,2]
[393651923,1762879838404,-500.0,0.00014488,2]
[393651924,1762879838413,-1000.0,0.00014488,2]
[393651925,1762879838423,-1000.0,0.00014488,2]
[393651926,1762879838433,-1000.0,0.00014488,2]
[393651927,1762879838442,-1000.0,0.00014488,2]
[393651928,1762879838452,-1000.0,0.00014488,2]
[393651929,1762879838462,-1000.0,0.00014488,2]
[393651930,1762879838472,-1264.63,0.00014488,2]
[393651931,1762879838481,-1264.63,0.00014488,2]
[393651932,1762879838491,-1264.63,0.00014488,2]